lending/lending_fUSD_20250303
["ID","MTS","AMOUNT","RATE_DAILY","PERIOD"]
[355242675,1741039832710,-239507.12387095,0.00012999,2]
[355242730,1741039833689,-356.87722162,0.000129,2]
[355242732,1741039833700,-41401.57742104,0.00012999,2]
[355242734,1741039833713,-109201.82578702,0.00012999,2]
[355242750,1741039838274,-2097.75045633,0.00012999,2]
[355242751,1741039838312,-1141.51787689,0.00012999,2]
[355242752,1741039838372,-6353.01939999,0.00012999,2]
[355242753,1741039838383,-2510.97132,0.00012999,2]
[355242754,1741039838395,-1459.02774,0.00012999,2]
[355242755,1741039838407,-3571.04577,0.00012999,2]
[355242756,1741039838421,-436.5000003,0.00012999,2]
[355242757,1741039838433,-731.00000024,0.00012999,2]
[355242758,1741039838449,-398.87142149,0.00012999,2]
[355242759,1741039838460,-2774.04243669,0.00012999,2]
[355242760,1741039838473,-280.0,0.00012999,2]
[355242761,1741039838484,-582.01722664,0.00012999,2]
[355242936,1741039840352,-8145.45019292,0.00012999,2]
[355242962,1741039840591,-679.09746161,0.00012999,2]
[355242964,1741039840603,-766.97633985,0.00012999,2]
[355242992,1741039840851,-368.48118279,0.00012999,2]
[355243007,1741039840985,-635656.08667963,0.00012999,2]
[355243009,1741039840994,-602.09387996,0.00013,2]
[355243011,1741039841004,-5082024.87639942,0.00013,2]
[355243013,1741039841014,-811101.61119815,0.00013,2]
[355243015,1741039841026,-1071.07945002,0.00013,2]
[355243017,1741039841036,-324.40982948,0.00013,2]
[355243020,1741039841053,-524.96478759,0.00013,2]
[355243022,1741039841064,-1048.6476,0.00013,2]
[355243315,1741039844058,-2500.0,0.000129,2]
[355243317,1741039844068,-513.49251298,0.000129,2]
[355243319,1741039844078,-886.10748702,0.00013,2]
[355243322,1741039844089,-3638.75,0.00013,2]
[355243439,1741039845356,-6282.85421029,0.00013,2]
[355243532,1741039846330,-16098.186532,0.00013,2]
[355243534,1741039846342,-3215.06076518,0.00013,2]
[355243537,1741039846364,-4700.0,0.00013,2]
[355243542,1741039846395,-207235.42203745,0.00013,2]
[355243546,1741039846427,-512.58272468,0.00013,2]
[355243553,1741039846488,-2527.84627115,0.00013,2]
[355243563,1741039846579,-756.61599878,0.00013,2]
[355243566,1741039846592,-27186.90495663,0.00013,2]
[355245139,1741040016839,150.0,0.00012356,7]
[355245140,1741040045201,450.52,0.000125,4]
[355245141,1741040045229,549.48,0.000125,4]
[355245142,1741040320067,250.52,0.00012115,2]
[355245143,1741040320093,749.48,0.00012115,2]
[355245144,1741040430188,50.52,0.00012354,2]
[355245145,1741040430214,233.65,0.00012354,2]
[355245146,1741040430421,284.17,0.00012419,2]
[355245147,1741040430614,282.18,0.00012484,2]
[355245148,1741040430643,1.99,0.00012484,2]
[355245149,1741040476060,587.16,0.00011975,2]
[355245150,1741040499404,210.85,0.00011983,2]
[355245151,1741040499427,800.0,0.00011983,2]
[355245152,1741040499450,800.0,0.00011983,2]
[355245153,1741040499472,41.57,0.00011983,2]
[355245154,1741040524946,758.43,0.00012354,2]
[355245155,1741040524971,800.0,0.00012354,2]
[355245156,1741040525000,800.0,0.00012354,2]
[355245157,1741040525024,800.0,0.00012354,2]
[355245158,1741040525048,800.0,0.00012354,2]
[355245159,1741040525073,800.0,0.00012354,2]
[355245160,1741040525098,800.0,0.00012354,2]
[355245161,1741040525124,800.0,0.00012354,2]
[355245162,1741040525149,800.0,0.00012354,2]
[355245163,1741040525175,800.0,0.00012354,2]
[355245164,1741040525200,800.0,0.00012354,2]
[355245165,1741040525228,9451.19914178,0.00012354,2]
[355245166,1741040525255,2079.77085822,0.00012354,2]
[355245167,1741040564855,2324.78,0.00011975,2]
[355245168,1741040581211,-173.46704497,0.00012549,2]
[355245169,1741040584516,1935.84,0.00011975,2]
[355245170,1741040605967,378.51,0.00010437,2]
[355245171,1741040641526,-110.70295503,0.00012549,2]
[355245172,1741040641549,-189.29704497,0.000126,4]
[355245178,1741040845675,900.0,0.000124,4]
[355245179,1741040847589,1900.0,0.000125,4]
[355245186,1741041008928,-2800.0,0.000126,4]
[355245187,1741041008978,-284.17,0.00012614,2]
[355245188,1741041009027,-150.0,0.00012647,2]
[355245189,1741041009078,-284.17,0.00012679,2]
[355245190,1741041009128,-2229.18529677,0.000127,4]
[355245191,1741041009295,-1128.4438841,0.000127,4]
[355245203,1741041031595,-442.37081913,0.000127,4]
[355245205,1741041031606,-378.51,0.000127,2]
[355245206,1741041031616,-165.68,0.00012725,2]
[355245207,1741041031625,-284.17,0.00012744,2]
[355245208,1741041031635,-964.32446741,0.0001279,2]
[355245209,1741041031644,-300.0,0.00012798,2]
[355245210,1741041031656,-150.0,0.00012799,2]
[355245211,1741041031666,-1157.20346186,0.000128,2]
[355245212,1741041031678,-669.75362954,0.000128,2]
[355245213,1741041031761,-7395.2751086,0.000128,2]
[355245214,1741041031771,-888.85,0.000128,2]
[355245215,1741041031781,-777.52,0.000128,2]
[355245216,1741041031791,-344.5,0.000128,2]
[355245217,1741041031800,-450.0,0.000128,2]
[355245218,1741041031811,-150.0,0.000128,2]
[355245219,1741041031821,-444.52270658,0.000128,2]
[355245220,1741041031833,-298.86,0.000128,2]
[355245221,1741041031846,-880.53352,0.000128,2]
[355245222,1741041031857,-112.06607342,0.000128,2]
[355245223,1741041031867,-150.0,0.000128,2]
[355245224,1741041031877,-241.78,0.000128,2]
[355245225,1741041031888,-150.0,0.000128,2]
[355245226,1741041031898,-484.05392659,0.000128,2]
[355245227,1741041031922,-293.46607341,0.000128,2]
[355245228,1741041031933,-441.09,0.000128,2]
[355245229,1741041031942,-344.5,0.000128,2]
[355245230,1741041031952,-150.0,0.000128,2]
[355245231,1741041031962,-267.5325,0.000128,2]
[355245232,1741041031972,-300.0,0.000128,2]
[355245233,1741041031982,-349.92,0.000128,2]
[355245234,1741041031991,-777.67,0.000128,2]
[355245235,1741041032001,-231.30448734,0.000128,2]
[355245236,1741041032017,-209.78551266,0.000128,2]
[355245237,1741041032026,-300.0,0.000128,2]
[355245238,1741041032036,-150.0,0.000128,2]
[355245239,1741041032047,-440.1,0.000128,2]
[355245240,1741041032057,-302.08,0.000128,2]
[355245241,1741041032067,-150.0,0.000128,2]
[355245242,1741041032076,-344.5,0.000128,2]
[355245243,1741041032086,-301.06,0.000128,2]
[355245244,1741041032095,-902.15,0.000128,2]
[355245245,1741041032105,-441.19,0.000128,2]
[355245247,1741041032115,-344.5,0.000128,2]
[355245249,1741041032125,-5702.13448734,0.000128,2]
[355245251,1741041032137,-12371.10551266,0.000128,2]
[355245253,1741041032147,-880.07,0.000128,2]
[355245255,1741041032158,-383.76,0.000128,2]
[355245256,1741041032167,-344.5,0.000128,2]
[355245258,1741041032177,-150.0,0.000128,2]
[355245259,1741041032186,-300.0,0.000128,2]
[355245260,1741041032195,-1555.04,0.000128,2]
[355245261,1741041032205,-3891.2758,0.000128,2]
[355245262,1741041032215,-344.5,0.000128,2]
[355245263,1741041032224,-150.0,0.000128,2]
[355245264,1741041032235,-247.41948463,0.000128,2]
[355245265,1741041032245,-2500.0,0.000128,2]
[355245266,1741041032255,-4700.0,0.000128,4]
[355245267,1741041032265,-617.53823067,0.000128,2]
[355245268,1741041032274,-284.17,0.00012809,2]
[355245269,1741041032284,-247.41948456,0.00012812,2]
[355245270,1741041032293,-500.0,0.00012822,2]
[355245271,1741041032303,-247.41948456,0.00012823,2]
[355245272,1741041032313,-247.41948456,0.00012835,2]
[355245273,1741041032322,-247.41948456,0.00012847,2]
[355245274,1741041032332,-27.89070884,0.00012858,2]
[355245275,1741041032354,-219.52877572,0.00012858,2]
[355245276,1741041032364,-509.87,0.0001287,2]
[355245277,1741041032374,-247.41948456,0.0001287,2]
[355245278,1741041032383,-159.00382,0.0001287,2]
[355245279,1741041032394,-284.17,0.00012874,2]
[355245280,1741041032404,-247.41948456,0.00012882,2]
[355245281,1741041032417,-247.41948456,0.00012893,2]
[355245282,1741041032426,-200.0,0.00012896,2]
[355245283,1741041032436,-3424.78494805,0.00012899,2]
[355245284,1741041032449,-3386.64527416,0.00012899,2]
[355245285,1741041032459,-2222.888,0.00012899,2]
[355245286,1741041032468,-171.49791752,0.00012899,2]
[355245287,1741041032478,-500.0,0.00012899,2]
[355245288,1741041032487,-500.0,0.00012899,2]
[355245289,1741041032497,-4774.98898453,0.00012899,2]
[355245291,1741041037488,-467.67054885,0.00012899,2]
[355245292,1741041037643,-53.25046662,0.00012899,2]
[355245293,1741041037653,-1760.74953338,0.00012899,2]
[355245294,1741041037665,-269.21046662,0.00012899,2]
[355245295,1741041037676,-1679.56,0.00012899,2]
[355245296,1741041037684,-1047.38248338,0.00012899,2]
[355245297,1741041037696,-757.32751662,0.00012899,2]
[355245298,1741041037705,-577.89248338,0.00012899,2]
[355245299,1741041037731,-3052.84311045,0.00012899,2]
[355245300,1741041037895,-407.72440617,0.00012899,2]
[355245301,1741041037906,-22197.83,0.00012899,2]
[355245302,1741041037916,-2166.5,0.00012899,2]
[355245303,1741041037926,-500.0,0.00012899,2]
[355245304,1741041037935,-864.08,0.00012899,2]
[355245305,1741041037945,-1937.88,0.00012899,2]
[355245306,1741041037954,-500.0,0.00012899,2]
[355245307,1741041037964,-787.07,0.00012899,2]
[355245308,1741041037974,-1472.3,0.00012899,2]
[355245309,1741041037983,-805.2,0.00012899,2]
[355245310,1741041037992,-12585.92,0.00012899,2]
[355245311,1741041038002,-561.97,0.00012899,2]
[355245312,1741041038011,-500.0,0.000129,2]
[355245313,1741041038021,-258.1168,0.000129,2]
[355245314,1741041038031,-14388.43374513,0.000129,2]
[355245484,1741041039602,-500.0,0.00012899,2]
[355245487,1741041039612,-2000.0,0.000129,2]
[355245489,1741041039624,-15708.59395487,0.000129,2]
[355245491,1741041039633,-2515.3656,0.000129,2]
[355245493,1741041039643,-13078.7035,0.000129,2]
[355245495,1741041039652,-6901.0956,0.000129,2]
[355245497,1741041039661,-1000.0,0.000129,2]
[355245499,1741041039672,-344.5,0.000129,2]
[355245501,1741041039681,-517.4461,0.000129,2]
[355245503,1741041039690,-9280.3599,0.000129,2]
[355245505,1741041039700,-614.73,0.000129,2]
[355245507,1741041039709,-301.5,0.000129,2]
[355245509,1741041039718,-344.5,0.000129,2]
[355245511,1741041039728,-150.0,0.000129,2]
[355245513,1741041039737,-150.0,0.000129,2]
[355245514,1741041039747,-150.0,0.000129,2]
[355245516,1741041039756,-282.34,0.000129,2]
[355245518,1741041039765,-255.15,0.000129,2]
[355245520,1741041039774,-344.5,0.000129,2]
[355245522,1741041039784,-150.0,0.000129,2]
[355245524,1741041039793,-344.5,0.000129,2]
[355245526,1741041039806,-150.0,0.000129,2]
[355245528,1741041039815,-150.06,0.000129,2]
[355245530,1741041039825,-300.0,0.000129,2]
[355245556,1741041040068,-893.9036,0.000129,2]
[355245559,1741041040079,-777.52,0.000129,2]
[355245561,1741041040089,-305.9,0.000129,2]
[355245563,1741041040099,-344.5,0.000129,2]
[355245565,1741041040108,-153.49,0.000129,2]
[355245567,1741041040117,-344.5,0.000129,2]
[355245569,1741041040127,-150.0,0.000129,2]
[355245571,1741041040137,-777.52,0.000129,2]
[355245573,1741041040146,-300.61,0.000129,2]
[355245575,1741041040155,-8509.5424,0.000129,2]
[355245576,1741041040166,-968.03,0.000129,2]
[355245578,1741041040175,-344.5,0.000129,2]
[355245580,1741041040185,-150.0,0.000129,2]
[355245583,1741041040195,-98930.6307,0.000129,2]
[355245585,1741041040204,-777.52,0.000129,2]
[355245586,1741041040213,-150.0,0.000129,2]
[355245588,1741041040223,-440.1,0.000129,2]
[355245590,1741041040232,-150.0,0.000129,2]
[355245592,1741041040241,-150.0,0.000129,2]
[355245594,1741041040251,-344.5,0.000129,2]
[355245596,1741041040259,-150.0,0.000129,2]
[355245598,1741041040268,-344.5,0.000129,2]
[355245600,1741041040278,-150.0,0.000129,2]
[355245602,1741041040287,-150.0,0.000129,2]
[355245604,1741041040296,-777.52,0.000129,2]
[355245606,1741041040306,-440.1,0.000129,2]
[355245608,1741041040315,-150.0,0.000129,2]
[355245610,1741041040324,-150.0,0.000129,2]
[355245612,1741041040333,-777.52,0.000129,2]
[355245614,1741041040344,-300.0,0.000129,2]
[355245616,1741041040354,-150.0,0.000129,2]
[355245618,1741041040363,-344.5,0.000129,2]
[355245620,1741041040372,-777.52,0.000129,2]
[355245622,1741041040381,-344.5,0.000129,2]
[355245624,1741041040390,-777.52,0.000129,2]
[355245626,1741041040399,-777.67,0.000129,2]
[355245628,1741041040408,-344.5,0.000129,2]
[355245630,1741041040419,-150.0,0.000129,2]
[355245632,1741041040427,-900.0,0.000129,4]
[355245634,1741041040437,-1960.12236894,0.000129,2]
[355245636,1741041040446,-150.0,0.000129,2]
[355245638,1741041040455,-150.0,0.000129,2]
[355245640,1741041040464,-344.5,0.000129,2]
[355245642,1741041040473,-156.75948834,0.000129,2]
[355245644,1741041040482,-344.5,0.000129,2]
[355245646,1741041040491,-150.0,0.000129,2]
[355245648,1741041040499,-344.56,0.000129,2]
[355245650,1741041040510,-150.0,0.000129,2]
[355245652,1741041040519,-150.0,0.000129,2]
[355245653,1741041040528,-328.26804306,0.000129,2]
[355245655,1741041040537,-150.0,0.000129,2]
[355245657,1741041040547,-150.0,0.000129,2]
[355245659,1741041040556,-881.11,0.000129,2]
[355245661,1741041040566,-4052.68378188,0.000129,2]
[355245663,1741041040576,-1960.12236891,0.00012901,2]
[355245665,1741041040585,-1960.12236891,0.00012901,2]
[355245667,1741041040595,-1960.12236891,0.00012902,2]
[355245669,1741041040604,-1960.12236891,0.00012902,2]
[355245671,1741041040613,-1960.12236891,0.00012903,2]
[355245673,1741041040623,-1960.12236891,0.00012903,2]
[355245675,1741041040632,-1960.12236891,0.00012904,2]
[355245677,1741041040642,-1960.12236891,0.00012904,2]
[355245678,1741041040652,-247.41948456,0.00012905,2]
[355245679,1741041040661,-1960.12236891,0.00012905,2]
[355245680,1741041040671,-284.17,0.0001294,2]
[355245681,1741041040680,-152.07269364,0.00012973,2]
[355245682,1741041040689,-210.01823609,0.00012973,2]
[355245683,1741041040698,-500.0,0.00012973,2]
[355245684,1741041040706,-500.0,0.00012999,2]
[355245685,1741041040715,-2967.72,0.00012999,2]
[355245686,1741041040724,-500.0,0.00012999,2]
[355245687,1741041040733,-963.43,0.00012999,2]
[355245688,1741041040742,-742.75,0.00012999,2]
[355245689,1741041040751,-817.4,0.00012999,2]
[355245690,1741041040760,-757.72,0.00012999,2]
[355245691,1741041040770,-500.0,0.00012999,2]
[355245692,1741041040779,-829.83,0.00012999,2]
[355245693,1741041040788,-1799.04,0.00012999,2]
[355245694,1741041040797,-500.0,0.00012999,2]
[355245695,1741041040807,-4601.86,0.00012999,2]
[355245696,1741041040817,-500.0,0.00012999,2]
[355245698,1741041040826,-11997.05,0.00012999,2]
[355245699,1741041040836,-500.0,0.00012999,2]
[355245701,1741041040846,-500.0,0.00012999,2]
[355245703,1741041040855,-1476.64,0.00012999,2]
[355245705,1741041040864,-1892.62,0.00012999,2]
[355245707,1741041040873,-798.68,0.00012999,2]
[355245709,1741041040884,-992.94,0.00012999,2]
[355245711,1741041040893,-500.0,0.00012999,2]
[355245713,1741041040903,-1588.31,0.00012999,2]
[355245715,1741041040912,-500.0,0.00012999,2]
[355245717,1741041040924,-539.23,0.00012999,2]
[355245719,1741041040933,-1378.05,0.00012999,2]
[355245721,1741041040943,-973.71,0.00012999,2]
[355245723,1741041040953,-844.42,0.00012999,2]
[355245725,1741041040962,-2962.99,0.00012999,2]
[355245727,1741041040971,-1468.01,0.00012999,2]
[355245729,1741041040981,-1534.92,0.00012999,2]
[355245731,1741041040990,-1218.75,0.00012999,2]
[355245733,1741041040999,-500.0,0.00012999,2]
[355245735,1741041041009,-1390.59,0.00012999,2]
[355245737,1741041041018,-6269.29,0.00012999,2]
[355245739,1741041041027,-6437.84,0.00012999,2]
[355245741,1741041041035,-500.0,0.00012999,2]
[355245742,1741041041044,-500.0,0.00012999,2]
[355245744,1741041041054,-1506.13,0.00012999,2]
[355245746,1741041041063,-500.0,0.00012999,2]
[355245749,1741041041073,-500.0,0.00012999,2]
[355245750,1741041041083,-2309.27,0.00012999,2]
[355245752,1741041041092,-500.0,0.00012999,2]
[355245754,1741041041102,-1957.01,0.00012999,2]
[355245756,1741041041111,-902.71,0.00012999,2]
[355245758,1741041041120,-500.0,0.00012999,2]
[355245760,1741041041129,-1811.57,0.00012999,2]
[355245762,1741041041138,-3608.0,0.00013,2]
[355245764,1741041041148,-481.67510396,0.00013,2]
[355245766,1741041041157,-930401.34637858,0.00013,2]
[355245768,1741041041167,-1588920.94348095,0.00013,2]
[355245770,1741041041181,-706.70281801,0.00013,2]
[355245774,1741041041203,-865.26339301,0.00013,2]
[355245783,1741041041282,-9096.64373114,0.00013,2]
[355245785,1741041041294,-8947.21879473,0.00013,2]
[355245787,1741041041305,-8943.78386462,0.00013,2]
[355245790,1741041041316,-9077.54866152,0.00013,2]
[355245792,1741041041327,-8943.84023489,0.00013,2]
[355246097,1741041043882,-1704.12,0.00012899,2]
[355246098,1741041043892,-3400.2,0.00012899,2]
[355246099,1741041043901,-284.38948286,0.00012999,2]
[355246100,1741041043910,-500.0,0.00012999,2]
[355246101,1741041043919,-2753.90094924,0.00013,2]
[355246102,1741041043936,-534.23575499,0.00013,2]
[355246250,1741041045551,-764.96,0.00012899,2]
[355246252,1741041045561,-500.0,0.00012999,2]
[355246254,1741041045570,-500.0,0.00012999,2]
[355246256,1741041045579,-2573.2637916,0.00013,2]
[355246258,1741041045591,-4217.63902993,0.00013,2]
[355246273,1741041045729,-6307.45,0.00012999,2]
[355246275,1741041045739,-60120.28160688,0.00013,2]
[355247028,1741041074792,481.09914178,0.000124,5]
[355247029,1741041074820,2518.90085822,0.000124,5]
[355247030,1741041183959,150.0,0.00012239,7]
[355247031,1741041277679,1000.0,0.000124,2]
[355247032,1741041321831,2213.6,0.000125,2]
[355247033,1741041439199,1226.84,0.000125,2]
[355247034,1741041483680,1000.0,0.00011922,2]
[355247035,1741041619314,156.94,0.00011925,2]
[355247036,1741041632871,550.0,0.00011,2]
[355247037,1741041672742,166.41,0.00011911,2]
[355247038,1741041672892,166.41,0.00012059,2]
[355247039,1741041673438,166.41,0.00012208,2]
[355247040,1741041673515,166.41,0.00012357,2]
[355247041,1741041673705,166.41,0.00012506,2]
[355247042,1741041731097,351.66914178,0.00011893,2]
[355247043,1741041731121,616.25085822,0.00011893,2]
[355247044,1741041744314,150.0,0.00012378,2]
[355247045,1741041834950,340.65,0.00010004,2]
[355247046,1741041835154,340.65,0.00012268,2]
[355247047,1741042039968,300.0,0.000123,4]
[355247048,1741042042059,700.0,0.000124,4]
[355247049,1741042044197,1000.0,0.000125,4]
[355247050,1741042114761,-1472.47539858,0.00012533,2]
[355247051,1741042114810,-1400.0,0.000126,4]
[355247052,1741042114854,-1000.0,0.00012627,2]
[355247053,1741042114900,-550.0,0.00012633,2]
[355247054,1741042114946,-150.0,0.00012641,2]
[355247055,1741042114992,-166.41,0.00012655,2]
[355247056,1741042115038,-917.90189999,0.00012699,2]
[355247057,1741042115202,-548.65690001,0.00012699,2]
[355247058,1741042115254,-1259.94539836,0.00012699,2]
[355247059,1741042115302,-1616.22912382,0.000127,4]
[355247060,1741042139814,-183.77087618,0.000127,4]
[355247061,1741042139871,-1259.94539834,0.00012721,2]
[355247062,1741042139921,-150.0,0.00012739,2]
[355247063,1741042139968,-1259.94539834,0.00012744,2]
[355247064,1741042140018,-1259.94539834,0.00012766,2]
[355247065,1741042140068,-1259.94539834,0.00012788,2]
[355247066,1741042140117,-464.86720345,0.00012789,2]
[355247067,1741042140198,-1172.03575331,0.00012789,2]
[355247068,1741042140245,-1046.25551983,0.00012797,2]
[355247069,1741042164845,-1028.21038017,0.00012797,2]
[355247070,1741042164893,-875.52243261,0.00012798,2]
[355247087,1741042231889,-309.75976731,0.00012708,2]
[355247088,1741042231902,-690.24023269,0.00012708,2]
[355247089,1741042231911,-1000.0,0.0001272,2]
[355247090,1741042231921,-150.0,0.00012773,2]
[355247091,1741042231931,-300.0,0.00012797,2]
[355247092,1741042231940,-124.47756739,0.00012798,2]
[355247093,1741042231950,-550.0,0.00012798,2]
[355247094,1741042231960,-150.0,0.00012798,2]
[355247095,1741042231970,-150.0,0.00012798,2]
[355247096,1741042231979,-331.16654567,0.00012798,2]
[355247097,1741042231989,-13078.7035,0.00012798,2]
[355247098,1741042231999,-6901.0956,0.00012799,2]
[355247099,1741042232010,-8509.5424,0.00012799,2]
[355247100,1741042232020,-517.4461,0.00012799,2]
[355247101,1741042232030,-103808.9669,0.00012799,2]
[355247102,1741042232039,-9280.3599,0.00012799,2]
[355247103,1741042232049,-1000.0,0.000128,2]
[355247104,1741042232059,-2515.3656,0.000128,2]
[355247105,1741042232068,-300.0,0.000128,4]
[355247106,1741042232078,-166.41,0.00012804,2]
[355247107,1741042232088,-1259.94539834,0.00012811,2]
[355247108,1741042232098,-1259.94539834,0.00012833,2]
[355247109,1741042232108,-1259.94539834,0.00012855,2]
[355247110,1741042232118,-150.0,0.00012867,2]
[355247111,1741042232127,-180.85441,0.0001287,2]
[355247112,1741042232137,-150.0,0.00012876,2]
[355247113,1741042232147,-2299.05856729,0.00012878,2]
[355247114,1741042232156,-1259.94539834,0.00012878,2]
[355247115,1741042232166,-150.0,0.00012883,2]
[355247116,1741042232176,-2299.05856729,0.00012889,2]
[355247117,1741042232187,-2150.94,0.00012896,2]
[355247118,1741042232197,-2468.01,0.00012896,2]
[355247119,1741042232206,-500.0,0.00012896,2]
[355247120,1741042232220,-1255.25,0.00012896,2]
[355247121,1741042232231,-500.0,0.00012896,2]
[355247122,1741042232241,-1945.38,0.00012896,2]
[355247123,1741042232251,-1237.6,0.00012896,2]
[355247125,1741042232261,-500.0,0.00012896,2]
[355247127,1741042232274,-771.65,0.00012896,2]
[355247128,1741042232284,-764.96,0.00012896,2]
[355247129,1741042232294,-500.0,0.00012897,2]
[355247130,1741042232304,-225.39062228,0.00012897,2]
[355247131,1741042232314,-754.28,0.00012897,2]
[355247132,1741042232324,-500.0,0.00012897,2]
[355247133,1741042232335,-802.96,0.00012897,2]
[355247134,1741042232344,-500.0,0.00012897,2]
[355247135,1741042232355,-500.0,0.00012897,2]
[355247136,1741042232366,-392.7066286,0.00012897,2]
[355247137,1741042232375,-871.48,0.00012897,2]
[355247138,1741042232386,-696.56,0.00012897,2]
[355247139,1741042232396,-500.0,0.00012897,2]
[355247140,1741042232406,-500.0,0.00012897,2]
[355247141,1741042232416,-803.84,0.00012897,2]
[355247142,1741042232426,-1475.19,0.00012897,2]
[355247143,1741042232436,-500.0,0.00012897,2]
[355247144,1741042232446,-500.0,0.00012897,2]
[355247145,1741042232456,-728.66,0.00012897,2]
[355247146,1741042232466,-1633.12,0.00012897,2]
[355247147,1741042232475,-500.0,0.00012897,2]
[355247148,1741042232485,-1096.46,0.00012897,2]
[355247149,1741042232495,-500.0,0.00012897,2]
[355247150,1741042232505,-937.93,0.00012897,2]
[355247151,1741042232516,-828.07,0.00012897,2]
[355247153,1741042232526,-500.0,0.00012897,2]
[355247155,1741042232535,-1568.65,0.00012897,2]
[355247157,1741042232545,-743.89,0.00012897,2]
[355247159,1741042232555,-500.0,0.00012897,2]
[355247161,1741042232565,-500.0,0.00012897,2]
[355247163,1741042232574,-12061.5,0.00012897,2]
[355247165,1741042232585,-500.0,0.00012897,2]
[355247167,1741042232595,-500.0,0.00012897,2]
[355247169,1741042232605,-500.0,0.00012897,2]
[355247171,1741042232614,-2180.163874,0.00012897,2]
[355247173,1741042232624,-2178.27,0.00012897,2]
[355247175,1741042232634,-439.4621217,0.00012897,2]
[355247177,1741042232644,-500.0,0.00012897,2]
[355247179,1741042232654,-500.0,0.00012897,2]
[355247181,1741042232664,-500.0,0.00012897,2]
[355247183,1741042232673,-158.041163,0.00012897,2]
[355247185,1741042232683,-500.0,0.00012897,2]
[355247187,1741042232693,-500.0,0.00012897,2]
[355247189,1741042232703,-500.0,0.00012897,2]
[355247191,1741042232712,-150.855452,0.00012897,2]
[355247193,1741042232722,-3199.28,0.00012897,2]
[355247217,1741042232950,-3258.53,0.00012897,2]
[355247220,1741042232966,-500.0,0.00012897,2]
[355247222,1741042232976,-500.0,0.00012897,2]
[355247224,1741042232987,-809.37,0.00012897,2]
[355247226,1741042232996,-940.0,0.00012897,2]
[355247228,1741042233006,-3246.76,0.00012897,2]
[355247230,1741042233016,-979.22,0.00012897,2]
[355247232,1741042233026,-1080.73,0.00012897,2]
[355247234,1741042233036,-500.0,0.00012897,2]
[355247236,1741042233046,-500.0,0.00012897,2]
[355247238,1741042233056,-5024.95,0.00012897,2]
[355247240,1741042233066,-1693.270164,0.00012897,2]
[355247242,1741042233075,-508.79105066,0.00012897,2]
[355247244,1741042233086,-3040.84,0.00012897,2]
[355247246,1741042233096,-500.0,0.00012897,2]
[355247248,1741042233106,-500.0,0.00012897,2]
[355247250,1741042233116,-3628.56,0.00012897,2]
[355247252,1741042233128,-8419.08,0.00012897,2]
[355247254,1741042233137,-500.0,0.00012897,2]
[355247256,1741042233147,-500.0,0.00012897,2]
[355247258,1741042233157,-754.03,0.00012897,2]
[355247260,1741042233167,-747.7,0.00012897,2]
[355247262,1741042233178,-500.0,0.00012897,2]
[355247264,1741042233190,-1237.52,0.00012897,2]